[Event "Titled Tuesday Blitz February 21 Early 2023"]
[White "Hasangatin, Ramil"]
[Black "Bharath Subramaniyam H"]
[WhiteFideId "4122160"]
[BlackFideId "46634827"]
[WhiteElo "2457"]
[BlackElo "2517"]
[Result "0-1"]
[Round "09"]
[TimeControl "180+2"]
[Date "2023.02.21"]
[WhiteClock "0:00:02"]
[BlackClock "0:01:20"]

1. e4 {[%clk 0:03:00]}  c6 {[%clk 0:02:59]} 2. Nf3 {[%clk 0:02:59]}  d5 {[%clk 0:02:58]} 3. d3 {[%clk 0:03:00]}  g6 {[%clk 0:02:58]} 4. g3 {[%clk 0:02:59]}  Bg7 {[%clk 0:02:58]} 5. Bg2 {[%clk 0:03:00]}  dxe4 {[%clk 0:02:58]} 6. dxe4 {[%clk 0:03:00]}  Qxd1+ {[%clk 0:02:59]} 7. Kxd1 {[%clk 0:03:01]}  Nf6 {[%clk 0:03:00]} 8. Nfd2 {[%clk 0:03:01]}  O-O {[%clk 0:02:57]} 9. Ke2 {[%clk 0:03:01]}  c5 {[%clk 0:02:56]} 10. Nc4 {[%clk 0:02:56]}  Nc6 {[%clk 0:02:57]} 11. c3 {[%clk 0:02:56]}  Bg4+ {[%clk 0:02:54]} 12. Bf3 {[%clk 0:02:53]}  Bxf3+ {[%clk 0:02:52]} 13. Kxf3 {[%clk 0:02:52]}  b5 {[%clk 0:02:53]} 14. Nca3 {[%clk 0:02:48]}  Ne5+ {[%clk 0:02:49]} 15. Ke3 {[%clk 0:02:48]}  b4 {[%clk 0:02:38]} 16. Nc2 {[%clk 0:02:40]}  Neg4+ {[%clk 0:02:20]} 17. Kf3 {[%clk 0:02:13]}  Nxe4 {[%clk 0:02:20]} 18. cxb4 {[%clk 0:02:09]}  Ngxf2 {[%clk 0:02:14]} 19. Rf1 {[%clk 0:02:06]}  cxb4 {[%clk 0:02:09]} 20. Nxb4 {[%clk 0:01:34]}  Rfc8 {[%clk 0:02:08]} 21. Nd2 {[%clk 0:01:24]}  Rxc1 {[%clk 0:02:02]} 22. Rfxc1 {[%clk 0:00:30]}  Nxd2+ {[%clk 0:02:00]} 23. Kxf2 {[%clk 0:00:28]}  Bxb2 {[%clk 0:02:01]} 24. Ke2 {[%clk 0:00:14]}  Ne4 {[%clk 0:01:58]} 25. Nd5 {[%clk 0:00:13]}  e6 {[%clk 0:01:56]} 26. Ne7+ {[%clk 0:00:11]}  Kg7 {[%clk 0:01:55]} 27. Nc6 {[%clk 0:00:12]}  Rc8 {[%clk 0:01:52]} 28. Kd3 {[%clk 0:00:11]}  Nd6 {[%clk 0:01:48]} 29. Rab1 {[%clk 0:00:10]}  Bxc1 {[%clk 0:01:47]} 30. Rxc1 {[%clk 0:00:11]}  e5 {[%clk 0:01:45]} 31. Rc5 {[%clk 0:00:10]}  e4+ {[%clk 0:01:44]} 32. Kd4 {[%clk 0:00:11]}  Re8 {[%clk 0:01:44]} 33. Ne5 {[%clk 0:00:07]}  Nf5+ {[%clk 0:01:36]} 34. Kxe4 {[%clk 0:00:06]}  f6 {[%clk 0:01:36]} 35. g4 {[%clk 0:00:07]}  Nd6+ {[%clk 0:01:29]} 36. Kd5 {[%clk 0:00:04]}  Rxe5+ {[%clk 0:01:30]} 37. Kxd6 {[%clk 0:00:04]}  Rxc5 {[%clk 0:01:30]} 38. Kxc5 {[%clk 0:00:05]}  f5 {[%clk 0:01:31]} 39. gxf5 {[%clk 0:00:06]}  gxf5 {[%clk 0:01:32]} 40. Kd5 {[%clk 0:00:04]}  Kf6 {[%clk 0:01:32]} 41. h4 {[%clk 0:00:05]}  h6 {[%clk 0:01:20]} 42. a3 {[%clk 0:00:04]}  a6 {[%clk 0:01:19]} 43. a4 {[%clk 0:00:04]}  a5 {[%clk 0:01:20]} 44. Kd4 {[%clk 0:00:01]}  Ke6 {[%clk 0:01:21]} 45. Kc5 {[%clk 0:00:01]}  f4 {[%clk 0:01:19]} 46. Kd4 {[%clk 0:00:01]}  Kf5 {[%clk 0:01:19]} 47. h5 {[%clk 0:00:01]}  Kg4 {[%clk 0:01:19]} 48. Ke4 {[%clk 0:00:02]}  f3 {[%clk 0:01:19]} 49. Ke3 {[%clk 0:00:02]}  Kg3 {[%clk 0:01:20]} 0-1


[Site "https://www.chess.com"]

[Event "Titled Tuesday Blitz February 21 Early 2023"]
[White "Cherniaiev, Tykhon"]
[Black "Chigaev, Maksim"]
[WhiteFideId "14182360"]
[BlackFideId "4108116"]
[WhiteElo "2330"]
[BlackElo "2628"]
[Result "1/2-1/2"]
[Round "09"]
[TimeControl "180+2"]
[Date "2023.02.21"]
[WhiteClock "0:00:05"]
[BlackClock "0:00:05"]

1. Nf3 {[%clk 0:03:00]}  d5 {[%clk 0:02:48]} 2. d4 {[%clk 0:03:00]}  Nf6 {[%clk 0:02:47]} 3. c4 {[%clk 0:03:01]}  c6 {[%clk 0:02:48]} 4. e3 {[%clk 0:03:01]}  Bf5 {[%clk 0:02:47]} 5. Bd3 {[%clk 0:03:01]}  Bg6 {[%clk 0:02:46]} 6. O-O {[%clk 0:03:01]}  e6 {[%clk 0:02:47]} 7. Nc3 {[%clk 0:03:00]}  Nbd7 {[%clk 0:02:47]} 8. Re1 {[%clk 0:02:58]}  Bb4 {[%clk 0:02:47]} 9. cxd5 {[%clk 0:02:47]}  exd5 {[%clk 0:02:45]} 10. a3 {[%clk 0:02:42]}  Bxc3 {[%clk 0:02:29]} 11. bxc3 {[%clk 0:02:43]}  O-O {[%clk 0:02:29]} 12. c4 {[%clk 0:02:37]}  Nb6 {[%clk 0:02:27]} 13. c5 {[%clk 0:02:29]}  Nc4 {[%clk 0:02:24]} 14. Bxc4 {[%clk 0:02:08]}  dxc4 {[%clk 0:02:25]} 15. Ne5 {[%clk 0:01:57]}  Qd5 {[%clk 0:01:44]} 16. Bb2 {[%clk 0:01:55]}  Nd7 {[%clk 0:01:25]} 17. Nxg6 {[%clk 0:01:44]}  fxg6 {[%clk 0:01:15]} 18. e4 {[%clk 0:01:44]}  Qf7 {[%clk 0:01:16]} 19. Qc2 {[%clk 0:01:43]}  b6 {[%clk 0:01:15]} 20. Rac1 {[%clk 0:01:39]}  bxc5 {[%clk 0:00:57]} 21. Qxc4 {[%clk 0:01:38]}  Rab8 {[%clk 0:00:58]} 22. Ba1 {[%clk 0:01:04]}  Qxc4 {[%clk 0:00:51]} 23. Rxc4 {[%clk 0:01:03]}  Rb3 {[%clk 0:00:51]} 24. dxc5 {[%clk 0:00:49]}  Rxa3 {[%clk 0:00:42]} 25. e5 {[%clk 0:00:48]}  Re8 {[%clk 0:00:38]} 26. f4 {[%clk 0:00:46]}  Ra5 {[%clk 0:00:32]} 27. Bd4 {[%clk 0:00:38]}  Nf8 {[%clk 0:00:33]} 28. Be3 {[%clk 0:00:27]}  Rd8 {[%clk 0:00:24]} 29. Rd4 {[%clk 0:00:17]}  Rxd4 {[%clk 0:00:21]} 30. Bxd4 {[%clk 0:00:18]}  Ne6 {[%clk 0:00:20]} 31. Be3 {[%clk 0:00:18]}  Ra3 {[%clk 0:00:19]} 32. g4 {[%clk 0:00:13]}  Nc7 {[%clk 0:00:14]} 33. f5 {[%clk 0:00:12]}  Nd5 {[%clk 0:00:15]} 34. Bf2 {[%clk 0:00:10]}  Ra4 {[%clk 0:00:12]} 35. h3 {[%clk 0:00:08]}  gxf5 {[%clk 0:00:13]} 36. gxf5 {[%clk 0:00:09]}  Rf4 {[%clk 0:00:13]} 37. e6 {[%clk 0:00:07]}  Kf8 {[%clk 0:00:14]} 38. Ra1 {[%clk 0:00:05]}  Rxf5 {[%clk 0:00:12]} 39. Rxa7 {[%clk 0:00:06]}  Re5 {[%clk 0:00:13]} 40. Ra8+ {[%clk 0:00:03]}  Ke7 {[%clk 0:00:13]} 41. Ra7+ {[%clk 0:00:04]}  Kf6 {[%clk 0:00:14]} 42. Rf7+ {[%clk 0:00:03]}  Kg6 {[%clk 0:00:14]} 43. Rd7 {[%clk 0:00:03]}  Rxe6 {[%clk 0:00:14]} 44. Bd4 {[%clk 0:00:04]}  Kf5 {[%clk 0:00:07]} 45. Rxg7 {[%clk 0:00:03]}  Rg6+ {[%clk 0:00:07]} 46. Rxg6 {[%clk 0:00:04]}  hxg6 {[%clk 0:00:07]} 47. Kf2 {[%clk 0:00:04]}  Kf4 {[%clk 0:00:08]} 48. Kg2 {[%clk 0:00:02]}  Ne7 {[%clk 0:00:07]} 49. Bf2 {[%clk 0:00:01]}  Nf5 {[%clk 0:00:07]} 50. Bg1 {[%clk 0:00:02]}  Ke4 {[%clk 0:00:06]} 51. Kf2 {[%clk 0:00:02]}  Kf4 {[%clk 0:00:05]} 52. Kg2 {[%clk 0:00:02]}  Ne7 {[%clk 0:00:04]} 53. Bh2+ {[%clk 0:00:02]}  Ke4 {[%clk 0:00:04]} 54. Kg3 {[%clk 0:00:02]}  Kf5 {[%clk 0:00:05]} 55. Kf3 {[%clk 0:00:02]}  Nd5 {[%clk 0:00:05]} 56. Bd6 {[%clk 0:00:03]}  Nf6 {[%clk 0:00:06]} 57. Bf4 {[%clk 0:00:03]}  Ne4 {[%clk 0:00:06]} 58. Be3 {[%clk 0:00:02]}  Nc3 {[%clk 0:00:07]} 59. Bd4 {[%clk 0:00:02]}  Nd5 {[%clk 0:00:07]} 60. Bf2 {[%clk 0:00:03]}  g5 {[%clk 0:00:06]} 61. Bg3 {[%clk 0:00:02]}  Nf6 {[%clk 0:00:07]} 62. Bf2 {[%clk 0:00:02]}  Nd7 {[%clk 0:00:06]} 63. Be3 {[%clk 0:00:02]}  Ne5+ {[%clk 0:00:06]} 64. Kg3 {[%clk 0:00:03]}  Ng6 {[%clk 0:00:05]} 65. Bf2 {[%clk 0:00:02]}  Nf8 {[%clk 0:00:05]} 66. Be3 {[%clk 0:00:03]}  Nh7 {[%clk 0:00:05]} 67. Kf3 {[%clk 0:00:03]}  Nf6 {[%clk 0:00:05]} 68. Bd2 {[%clk 0:00:03]}  Ne4 {[%clk 0:00:03]} 69. Be3 {[%clk 0:00:04]}  Nc3 {[%clk 0:00:04]} 70. Bd4 {[%clk 0:00:04]}  Nd5 {[%clk 0:00:04]} 71. Bb2 {[%clk 0:00:04]}  Nf4 {[%clk 0:00:05]} 72. Kg3 {[%clk 0:00:04]}  Ne2+ {[%clk 0:00:04]} 73. Kf3 {[%clk 0:00:04]}  Nf4 {[%clk 0:00:04]} 74. Kg3 {[%clk 0:00:05]}  Nh5+ {[%clk 0:00:04]} 75. Kf3 {[%clk 0:00:05]}  Nf4 {[%clk 0:00:05]} 1/2-1/2


[Site "https://www.chess.com"]

[Event "Titled Tuesday Blitz February 21 Early 2023"]
[White "Gokerkan, Cem Kaan"]
[Black "Orlov, Georgi"]
[WhiteFideId "6336760"]
[BlackFideId "2011271"]
[WhiteElo "2500"]
[BlackElo "2453"]
[Result "0-1"]
[Round "09"]
[TimeControl "180+2"]
[Date "2023.02.21"]
[WhiteClock "0:01:14"]
[BlackClock "0:01:43"]

1. e4 {[%clk 0:03:00]}  c5 {[%clk 0:02:58]} 2. c3 {[%clk 0:03:01]}  Nf6 {[%clk 0:02:57]} 3. e5 {[%clk 0:03:01]}  Nd5 {[%clk 0:02:57]} 4. d4 {[%clk 0:03:02]}  cxd4 {[%clk 0:02:58]} 5. Bc4 {[%clk 0:03:03]}  Nb6 {[%clk 0:02:57]} 6. Bb3 {[%clk 0:03:03]}  d5 {[%clk 0:02:57]} 7. cxd4 {[%clk 0:03:03]}  Nc6 {[%clk 0:02:57]} 8. Bc2 {[%clk 0:03:03]}  Nb4 {[%clk 0:02:54]} 9. Nc3 {[%clk 0:03:03]}  Nxc2+ {[%clk 0:02:52]} 10. Qxc2 {[%clk 0:03:04]}  Bd7 {[%clk 0:02:50]} 11. Nge2 {[%clk 0:03:04]}  e6 {[%clk 0:02:49]} 12. O-O {[%clk 0:03:03]}  Rc8 {[%clk 0:02:49]} 13. Ng3 {[%clk 0:03:00]}  Be7 {[%clk 0:02:39]} 14. Qd1 {[%clk 0:02:44]}  O-O {[%clk 0:02:38]} 15. Qg4 {[%clk 0:02:39]}  f5 {[%clk 0:02:34]} 16. Qd1 {[%clk 0:02:15]}  f4 {[%clk 0:02:29]} 17. Nh5 {[%clk 0:01:59]}  f3 {[%clk 0:02:29]} 18. g3 {[%clk 0:01:58]}  Qe8 {[%clk 0:02:27]} 19. Nf4 {[%clk 0:01:54]}  g5 {[%clk 0:02:25]} 20. Nd3 {[%clk 0:01:54]}  Qh5 {[%clk 0:02:23]} 21. Ne1 {[%clk 0:01:39]}  Be8 {[%clk 0:02:15]} 22. Be3 {[%clk 0:01:31]}  Bg6 {[%clk 0:02:13]} 23. Rc1 {[%clk 0:01:30]}  Nc4 {[%clk 0:02:02]} 24. Qb3 {[%clk 0:01:20]}  Nxe3 {[%clk 0:01:44]} 25. fxe3 {[%clk 0:01:21]}  f2+ {[%clk 0:01:44]} 26. Rxf2 {[%clk 0:01:21]}  Rxf2 {[%clk 0:01:44]} 27. Kxf2 {[%clk 0:01:22]}  Qxh2+ {[%clk 0:01:44]} 28. Ng2 {[%clk 0:01:14]}  Rf8+ {[%clk 0:01:43]} 0-1


[Site "https://www.chess.com"]

[Event "Titled Tuesday Blitz February 21 Early 2023"]
[White "Jakubowski, Krzysztof"]
[Black "Yuan, Qingyu"]
[WhiteFideId "1112848"]
[BlackFideId "8609772"]
[WhiteElo "2486"]
[BlackElo "2373"]
[Result "0-1"]
[Round "09"]
[TimeControl "180+2"]
[Date "2023.02.21"]
[WhiteClock "0:00:09"]
[BlackClock "0:00:15"]

1. e4 {[%clk 0:02:57]}  e5 {[%clk 0:03:00]} 2. Nf3 {[%clk 0:02:55]}  Nc6 {[%clk 0:03:00]} 3. Bc4 {[%clk 0:02:54]}  Bc5 {[%clk 0:03:00]} 4. d3 {[%clk 0:02:53]}  Nf6 {[%clk 0:03:01]} 5. O-O {[%clk 0:02:51]}  O-O {[%clk 0:03:01]} 6. c3 {[%clk 0:02:51]}  d5 {[%clk 0:03:01]} 7. exd5 {[%clk 0:02:50]}  Nxd5 {[%clk 0:03:02]} 8. h3 {[%clk 0:02:49]}  Nb6 {[%clk 0:02:56]} 9. Bb5 {[%clk 0:02:48]}  Bd6 {[%clk 0:02:53]} 10. Re1 {[%clk 0:02:47]}  f6 {[%clk 0:02:46]} 11. Bxc6 {[%clk 0:02:34]}  bxc6 {[%clk 0:02:46]} 12. d4 {[%clk 0:02:33]}  c5 {[%clk 0:02:14]} 13. dxe5 {[%clk 0:02:31]}  fxe5 {[%clk 0:02:15]} 14. Bg5 {[%clk 0:02:28]}  Qe8 {[%clk 0:02:12]} 15. Nbd2 {[%clk 0:02:27]}  Bb7 {[%clk 0:02:09]} 16. Bh4 {[%clk 0:02:20]}  Qg6 {[%clk 0:02:05]} 17. Bg3 {[%clk 0:02:15]}  Rae8 {[%clk 0:01:51]} 18. Nh4 {[%clk 0:02:06]}  Qh6 {[%clk 0:01:47]} 19. Ne4 {[%clk 0:02:02]}  Kh8 {[%clk 0:01:45]} 20. Qd2 {[%clk 0:01:51]}  Qe6 {[%clk 0:01:38]} 21. b3 {[%clk 0:01:41]}  c4 {[%clk 0:01:34]} 22. Qc2 {[%clk 0:01:38]}  Be7 {[%clk 0:01:29]} 23. Nf3 {[%clk 0:01:37]}  Rxf3 {[%clk 0:01:11]} 24. gxf3 {[%clk 0:01:36]}  Qxh3 {[%clk 0:01:11]} 25. bxc4 {[%clk 0:01:32]}  Nxc4 {[%clk 0:01:07]} 26. Rad1 {[%clk 0:01:27]}  Nd6 {[%clk 0:01:05]} 27. Rb1 {[%clk 0:01:15]}  Ba8 {[%clk 0:01:02]} 28. Qd3 {[%clk 0:01:12]}  h5 {[%clk 0:00:57]} 29. Nxd6 {[%clk 0:00:45]}  cxd6 {[%clk 0:00:49]} 30. Re3 {[%clk 0:00:36]}  Rf8 {[%clk 0:00:46]} 31. Qg6 {[%clk 0:00:33]}  h4 {[%clk 0:00:41]} 32. Bh2 {[%clk 0:00:26]}  Bxf3 {[%clk 0:00:34]} 33. Rb4 {[%clk 0:00:19]}  Rf6 {[%clk 0:00:16]} 34. Rb8+ {[%clk 0:00:16]}  Bf8 {[%clk 0:00:16]} 35. Qg5 {[%clk 0:00:11]}  Kh7 {[%clk 0:00:15]} 36. Re8 {[%clk 0:00:09]}  Rg6 {[%clk 0:00:15]} 0-1


[Site "https://www.chess.com"]

[Event "Titled Tuesday Blitz February 21 Early 2023"]
[White "Melikyan, Gnel"]
[Black "Demchenko, Anton"]
[WhiteFideId "54109990"]
[BlackFideId "4160258"]
[WhiteElo "2238"]
[BlackElo "2623"]
[Result "1-0"]
[Round "09"]
[TimeControl "180+2"]
[Date "2023.02.21"]
[WhiteClock "0:00:04"]
[BlackClock "0:00:01"]

1. e4 {[%clk 0:02:59]}  c5 {[%clk 0:02:56]} 2. Nf3 {[%clk 0:02:58]}  d6 {[%clk 0:02:56]} 3. d4 {[%clk 0:02:58]}  cxd4 {[%clk 0:02:55]} 4. Nxd4 {[%clk 0:02:58]}  Nf6 {[%clk 0:02:54]} 5. Nc3 {[%clk 0:02:57]}  Nc6 {[%clk 0:02:54]} 6. Bc4 {[%clk 0:02:56]}  Bd7 {[%clk 0:02:53]} 7. O-O {[%clk 0:02:55]}  g6 {[%clk 0:02:47]} 8. Re1 {[%clk 0:02:48]}  Bg7 {[%clk 0:02:45]} 9. Bb3 {[%clk 0:02:42]}  O-O {[%clk 0:02:42]} 10. Bg5 {[%clk 0:02:32]}  h6 {[%clk 0:02:27]} 11. Bh4 {[%clk 0:02:22]}  g5 {[%clk 0:02:07]} 12. Bg3 {[%clk 0:02:11]}  Nxd4 {[%clk 0:02:00]} 13. Qxd4 {[%clk 0:02:10]}  Nh5 {[%clk 0:02:01]} 14. Qd2 {[%clk 0:01:43]}  Rc8 {[%clk 0:01:59]} 15. Re3 {[%clk 0:01:22]}  Kh8 {[%clk 0:01:47]} 16. Rd1 {[%clk 0:01:17]}  Nxg3 {[%clk 0:01:23]} 17. hxg3 {[%clk 0:01:12]}  Be5 {[%clk 0:01:23]} 18. Rd3 {[%clk 0:01:03]}  Qa5 {[%clk 0:01:09]} 19. Rd5 {[%clk 0:01:00]}  Bxc3 {[%clk 0:01:02]} 20. Rxa5 {[%clk 0:00:49]}  Bxd2 {[%clk 0:01:02]} 21. Rxd2 {[%clk 0:00:50]}  Bc6 {[%clk 0:00:42]} 22. Rxa7 {[%clk 0:00:36]}  Ra8 {[%clk 0:00:40]} 23. Rxa8 {[%clk 0:00:34]}  Rxa8 {[%clk 0:00:41]} 24. f3 {[%clk 0:00:30]}  Kg7 {[%clk 0:00:41]} 25. Kf2 {[%clk 0:00:29]}  Kf6 {[%clk 0:00:41]} 26. a3 {[%clk 0:00:28]}  h5 {[%clk 0:00:40]} 27. Bd5 {[%clk 0:00:26]}  h4 {[%clk 0:00:35]} 28. Bxc6 {[%clk 0:00:18]}  bxc6 {[%clk 0:00:34]} 29. Rd4 {[%clk 0:00:18]}  Ke5 {[%clk 0:00:32]} 30. Rb4 {[%clk 0:00:18]}  e6 {[%clk 0:00:06]} 31. Rb7 {[%clk 0:00:17]}  Kf6 {[%clk 0:00:06]} 32. Rc7 {[%clk 0:00:14]}  c5 {[%clk 0:00:05]} 33. Rd7 {[%clk 0:00:14]}  Rb8 {[%clk 0:00:05]} 34. b3 {[%clk 0:00:14]}  Rb6 {[%clk 0:00:05]} 35. gxh4 {[%clk 0:00:12]}  gxh4 {[%clk 0:00:04]} 36. g3 {[%clk 0:00:13]}  hxg3+ {[%clk 0:00:03]} 37. Kxg3 {[%clk 0:00:13]}  c4 {[%clk 0:00:03]} 38. bxc4 {[%clk 0:00:10]}  Ra6 {[%clk 0:00:02]} 39. Kf4 {[%clk 0:00:09]}  e5+ {[%clk 0:00:03]} 40. Ke3 {[%clk 0:00:06]}  Ke6 {[%clk 0:00:04]} 41. Rc7 {[%clk 0:00:05]}  Rxa3+ {[%clk 0:00:05]} 42. Ke2 {[%clk 0:00:05]}  Rc3 {[%clk 0:00:05]} 43. Kf2 {[%clk 0:00:03]}  Rxc2+ {[%clk 0:00:05]} 44. Kg3 {[%clk 0:00:04]}  Rc3 {[%clk 0:00:05]} 45. Kg4 {[%clk 0:00:04]}  Rc1 {[%clk 0:00:05]} 46. Kg3 {[%clk 0:00:05]}  f6 {[%clk 0:00:06]} 47. Kf2 {[%clk 0:00:05]}  Rc2+ {[%clk 0:00:06]} 48. Ke3 {[%clk 0:00:05]}  Rc3+ {[%clk 0:00:06]} 49. Ke2 {[%clk 0:00:06]}  Ra3 {[%clk 0:00:06]} 50. Kf2 {[%clk 0:00:06]}  Rd3 {[%clk 0:00:06]} 51. Ke2 {[%clk 0:00:06]}  Rc3 {[%clk 0:00:06]} 52. Kf2 {[%clk 0:00:06]}  f5 {[%clk 0:00:07]} 53. exf5+ {[%clk 0:00:06]}  Kxf5 {[%clk 0:00:07]} 54. Rc6 {[%clk 0:00:05]}  Kf4 {[%clk 0:00:07]} 55. Rxd6 {[%clk 0:00:04]}  Rc2+ {[%clk 0:00:08]} 56. Ke1 {[%clk 0:00:04]}  Kxf3 {[%clk 0:00:09]} 57. Rf6+ {[%clk 0:00:03]}  Ke3 {[%clk 0:00:09]} 58. Kd1 {[%clk 0:00:04]}  Rxc4 {[%clk 0:00:10]} 59. Rh6 {[%clk 0:00:04]}  Rf4 {[%clk 0:00:06]} 60. Rh1 {[%clk 0:00:03]}  e4 {[%clk 0:00:06]} 61. Ke1 {[%clk 0:00:04]}  Rf3 {[%clk 0:00:05]} 62. Rh8 {[%clk 0:00:04]}  Rg3 {[%clk 0:00:03]} 63. Rh1 {[%clk 0:00:04]}  Rf3 {[%clk 0:00:03]} 64. Rh6 {[%clk 0:00:04]}  Rg3 {[%clk 0:00:02]} 65. Kf1 {[%clk 0:00:04]}  Kd3 {[%clk 0:00:03]} 66. Rd6+ {[%clk 0:00:04]}  Ke3 {[%clk 0:00:04]} 67. Ra6 {[%clk 0:00:05]}  Rh3 {[%clk 0:00:01]} 68. Ra3+ {[%clk 0:00:04]} 1-0


[Site "https://www.chess.com"]

[Event "Titled Tuesday Blitz February 21 Early 2023"]
[White "Cuenca Jimenez, Jose Fernando"]
[Black "Predke, Alexandr"]
[WhiteFideId "2255570"]
[BlackFideId "24107581"]
[WhiteElo "2535"]
[BlackElo "2685"]
[Result "1-0"]
[Round "09"]
[TimeControl "180+2"]
[Date "2023.02.21"]
[WhiteClock "0:00:05"]
[BlackClock "0:00:02"]

1. d4 {[%clk 0:03:00]}  d5 {[%clk 0:02:56]} 2. c4 {[%clk 0:03:00]}  Nc6 {[%clk 0:02:55]} 3. cxd5 {[%clk 0:02:58]}  Qxd5 {[%clk 0:02:56]} 4. e3 {[%clk 0:02:58]}  e5 {[%clk 0:02:52]} 5. Nc3 {[%clk 0:02:58]}  Bb4 {[%clk 0:02:52]} 6. a3 {[%clk 0:02:58]}  Bxc3+ {[%clk 0:02:52]} 7. bxc3 {[%clk 0:02:59]}  Nf6 {[%clk 0:02:51]} 8. c4 {[%clk 0:02:57]}  Qd6 {[%clk 0:02:51]} 9. d5 {[%clk 0:02:55]}  Ne7 {[%clk 0:02:45]} 10. a4 {[%clk 0:02:51]}  c5 {[%clk 0:02:42]} 11. Ne2 {[%clk 0:02:45]}  h5 {[%clk 0:02:26]} 12. Nc3 {[%clk 0:02:43]}  Bd7 {[%clk 0:02:26]} 13. Qb3 {[%clk 0:02:35]}  O-O {[%clk 0:02:20]} 14. Be2 {[%clk 0:02:28]}  h4 {[%clk 0:02:19]} 15. h3 {[%clk 0:02:20]}  e4 {[%clk 0:02:09]} 16. Bb2 {[%clk 0:02:17]}  Ng6 {[%clk 0:02:03]} 17. Nb5 {[%clk 0:01:47]}  Bxb5 {[%clk 0:01:42]} 18. Qxb5 {[%clk 0:01:48]}  Rfc8 {[%clk 0:01:29]} 19. O-O {[%clk 0:01:44]}  Rc7 {[%clk 0:01:29]} 20. a5 {[%clk 0:01:39]}  Rac8 {[%clk 0:01:24]} 21. Bc3 {[%clk 0:01:37]}  Re7 {[%clk 0:01:15]} 22. Rfb1 {[%clk 0:01:29]}  Rcc7 {[%clk 0:01:11]} 23. Rb3 {[%clk 0:01:23]}  Ne8 {[%clk 0:01:01]} 24. Rab1 {[%clk 0:01:07]}  Qd8 {[%clk 0:00:59]} 25. Qa4 {[%clk 0:01:03]}  Nd6 {[%clk 0:00:55]} 26. Qa1 {[%clk 0:01:02]}  f5 {[%clk 0:00:39]} 27. Bh5 {[%clk 0:01:00]}  Nh8 {[%clk 0:00:28]} 28. Be5 {[%clk 0:00:55]}  Rxe5 {[%clk 0:00:15]} 29. Qxe5 {[%clk 0:00:55]}  Qe7 {[%clk 0:00:16]} 30. Qxe7 {[%clk 0:00:42]}  Rxe7 {[%clk 0:00:17]} 31. Be2 {[%clk 0:00:36]}  Nhf7 {[%clk 0:00:16]} 32. Ra3 {[%clk 0:00:33]}  Nc8 {[%clk 0:00:07]} 33. Rb5 {[%clk 0:00:31]}  Rc7 {[%clk 0:00:06]} 34. g3 {[%clk 0:00:26]}  hxg3 {[%clk 0:00:05]} 35. fxg3 {[%clk 0:00:26]}  Ncd6 {[%clk 0:00:04]} 36. Rb1 {[%clk 0:00:26]}  a6 {[%clk 0:00:04]} 37. g4 {[%clk 0:00:23]}  g6 {[%clk 0:00:03]} 38. gxf5 {[%clk 0:00:22]}  gxf5 {[%clk 0:00:04]} 39. Kf2 {[%clk 0:00:20]}  Kg7 {[%clk 0:00:04]} 40. Rb6 {[%clk 0:00:16]}  Rd7 {[%clk 0:00:03]} 41. Rab3 {[%clk 0:00:15]}  Ne5 {[%clk 0:00:03]} 42. Rxd6 {[%clk 0:00:10]}  Rxd6 {[%clk 0:00:03]} 43. Rxb7+ {[%clk 0:00:10]}  Kf8 {[%clk 0:00:04]} 44. Rb6 {[%clk 0:00:09]}  Ke7 {[%clk 0:00:03]} 45. h4 {[%clk 0:00:06]}  Nf7 {[%clk 0:00:02]} 46. Rb7+ {[%clk 0:00:06]}  Kf6 {[%clk 0:00:02]} 47. Ke1 {[%clk 0:00:05]}  Ne5 {[%clk 0:00:01]} 48. h5 {[%clk 0:00:03]}  Nf7 {[%clk 0:00:02]} 49. Kd2 {[%clk 0:00:03]}  Kg7 {[%clk 0:00:01]} 50. Rb6 {[%clk 0:00:03]}  Rxb6 {[%clk 0:00:01]} 51. axb6 {[%clk 0:00:04]}  Nd6 {[%clk 0:00:01]} 52. Kc3 {[%clk 0:00:04]}  Nb7 {[%clk 0:00:01]} 53. Bf1 {[%clk 0:00:02]}  Kh6 {[%clk 0:00:02]} 54. Be2 {[%clk 0:00:03]}  Kg5 {[%clk 0:00:02]} 55. Kb3 {[%clk 0:00:03]}  Na5+ {[%clk 0:00:02]} 56. Ka4 {[%clk 0:00:03]}  Nb7 {[%clk 0:00:03]} 57. d6 {[%clk 0:00:03]}  Nxd6 {[%clk 0:00:03]} 58. Ka5 {[%clk 0:00:04]}  f4 {[%clk 0:00:02]} 59. exf4+ {[%clk 0:00:04]}  Kxf4 {[%clk 0:00:03]} 60. h6 {[%clk 0:00:04]}  Nf7 {[%clk 0:00:03]} 61. h7 {[%clk 0:00:04]}  Ke3 {[%clk 0:00:03]} 62. Bh5 {[%clk 0:00:04]}  Nh8 {[%clk 0:00:03]} 63. b7 {[%clk 0:00:04]}  Kd4 {[%clk 0:00:03]} 64. b8=Q {[%clk 0:00:05]}  e3 {[%clk 0:00:03]} 65. Qxh8+ {[%clk 0:00:05]}  Kxc4 {[%clk 0:00:02]} 66. Qe8 {[%clk 0:00:06]}  Kc3 {[%clk 0:00:02]} 67. Qxe3+ {[%clk 0:00:05]} 1-0


[Site "https://www.chess.com"]